fUSD/lending_fUSD_20260517
["ID","MTS","AMOUNT","RATE_DAILY","PERIOD"]
[422464820,1778969453000,-500.0,0.00024384,2]
[422464822,1778969453000,-500.0,0.00024384,2]
[422464823,1778969453000,-394.72312989,0.00024384,2]
[422464824,1778969453000,-150.0,0.00024384,2]
[422464821,1778969453000,-225.48548331,0.00024384,2]
[422464831,1778969453000,-1932.0,0.00024384,2]
[422464829,1778969453000,-500.0,0.00024384,2]
[422464826,1778969453000,-500.0,0.00024384,2]
[422464830,1778969453000,-500.0,0.00024384,2]
[422464836,1778969453000,-500.0,0.00024384,2]
[422464838,1778969453000,-174.08613198,0.00024384,2]
[422464835,1778969453000,-500.0,0.00024384,2]
[422464833,1778969453000,-500.0,0.00024384,2]
[422464843,1778969453000,-1932.0,0.00024384,2]
[422464844,1778969453000,-1932.0,0.00024384,2]
[422464842,1778969453000,-1932.0,0.00024384,2]
[422464841,1778969453000,-1932.0,0.00024384,2]
[422464845,1778969453000,-500.0,0.00024384,2]
[422464832,1778969453000,-324.45353796,0.00024384,2]
[422464834,1778969453000,-1932.0,0.00024384,2]
[422464875,1778969453000,-1932.0,0.00024384,2]
[422464931,1778969453000,-151.0,0.00025,2]
[422464886,1778969453000,-964.0,0.00024658,2]
[422464904,1778969453000,-964.0,0.00024658,2]
[422464926,1778969453000,-167.32677,0.00025,2]
[422464914,1778969453000,-782.24247352,0.00025,2]
[422464921,1778969453000,-56617.88213438,0.00025,7]
[422464918,1778969453000,-179.7,0.00025,2]
[422464917,1778969453000,-347.27724586,0.00025,2]
[422464916,1778969453000,-244.39833639,0.00025,2]
[422464920,1778969453000,-458.15589909,0.00025,2]
[422464924,1778969453000,-1585248.97044921,0.00025,2]
[422464923,1778969453000,-2279.43219507,0.00025,2]
[422464915,1778969453000,-465.51149616,0.00025,2]
[422464925,1778969453000,-167.32677,0.00025,2]
[422464919,1778969453000,-179.7,0.00025,2]
[422464922,1778969453000,-541.87120042,0.00025,5]
[422464928,1778969453000,-167.32677,0.00025,2]
[422464927,1778969453000,-167.32677,0.00025,2]
[422464929,1778969453000,-1402.46752,0.00025,2]
[422464938,1778969453000,-305.660067,0.00025,2]
[422464935,1778969453000,-223.16459096,0.00025,2]
[422464939,1778969453000,-151.0,0.00025,2]
[422464937,1778969453000,-305.660067,0.00025,2]
[422464934,1778969453000,-151.0,0.00025,2]
[422464930,1778969453000,-1402.46752,0.00025,2]
[422464932,1778969453000,-1402.46752,0.00025,2]
[422464936,1778969453000,-305.660067,0.00025,2]
[422464933,1778969453000,-1402.46752,0.00025,2]
[422464940,1778969453000,-305.660067,0.00025,2]
[422464878,1778969453000,-1000.0,0.00024658,2]
[422464941,1778969453000,-627.669364,0.00025,2]
[422464913,1778969453000,-900.0,0.000249,9]
[422464902,1778969453000,-964.0,0.00024658,2]
[422464942,1778969453000,-627.669364,0.00025,2]
[422464912,1778969453000,-1083.76873823,0.00024895,2]
[422464906,1778969453000,-964.0,0.00024658,2]
[422464876,1778969453000,-1434.15,0.000244,7]
[422464879,1778969453000,-151.0,0.00024658,2]
[422464877,1778969453000,-1227.65,0.00024577,2]
[422464881,1778969453000,-151.0,0.00024658,2]
[422464883,1778969453000,-151.0,0.00024658,2]
[422464882,1778969453000,-151.0,0.00024658,2]
[422464880,1778969453000,-151.0,0.00024658,2]
[422464897,1778969453000,-964.0,0.00024658,2]
[422464893,1778969453000,-964.0,0.00024658,2]
[422464888,1778969453000,-964.0,0.00024658,2]
[422464899,1778969453000,-964.0,0.00024658,2]
[422464894,1778969453000,-964.0,0.00024658,2]
[422464900,1778969453000,-964.0,0.00024658,2]
[422464896,1778969453000,-964.0,0.00024658,2]
[422464873,1778969453000,-1932.0,0.00024384,2]
[422464890,1778969453000,-964.0,0.00024658,2]
[422464891,1778969453000,-964.0,0.00024658,2]
[422464908,1778969453000,-964.0,0.00024658,2]
[422464911,1778969453000,-180.79,0.00024841,2]
[422464909,1778969453000,-976.41025337,0.00024658,2]
[422464907,1778969453000,-964.0,0.00024658,2]
[422464905,1778969453000,-964.0,0.00024658,2]
[422464910,1778969453000,-436.38967366,0.00024756,2]
[422464903,1778969453000,-964.0,0.00024658,2]
[422464887,1778969453000,-964.0,0.00024658,2]
[422464898,1778969453000,-964.0,0.00024658,2]
[422464892,1778969453000,-964.0,0.00024658,2]
[422464889,1778969453000,-964.0,0.00024658,2]
[422464895,1778969453000,-964.0,0.00024658,2]
[422464901,1778969453000,-964.0,0.00024658,2]
[422464968,1778969454000,-526.33013657,0.00025342,2]
[422464985,1778969454000,-160.0,0.00026,10]
[422464984,1778969454000,-400.29843382,0.00026,20]
[422464983,1778969454000,-27304.73386755,0.00026,10]
[422464982,1778969454000,-550.0,0.00026,2]
[422464980,1778969454000,-151.0,0.00025822,7]
[422464978,1778969454000,-3397.24,0.00025786,2]
[422464989,1778969454000,-250.0,0.00026027,2]
[422464979,1778969454000,-465.51149616,0.000258,2]
[422464973,1778969454000,-2648.0,0.00025641,2]
[422464986,1778969454000,-526.33013657,0.00026027,2]
[422464981,1778969454000,-465.51149616,0.00026,2]
[422464970,1778969454000,-1486.69,0.00025567,7]
[422464995,1778969454000,-290.0,0.00026027,2]
[422464988,1778969454000,-250.0,0.00026027,2]
[422464990,1778969454000,-237.0,0.00026027,2]
[422464992,1778969454000,-550.0,0.00026027,2]
[422464996,1778969454000,-250.0,0.00026027,2]
[422464994,1778969454000,-200.0,0.00026027,2]
[422464993,1778969454000,-433.0,0.00026027,2]
[422465000,1778969454000,-200.0,0.00026027,2]
[422464997,1778969454000,-354.0,0.00026027,2]
[422464999,1778969454000,-222.0,0.00026027,2]
[422464991,1778969454000,-550.0,0.00026027,2]
[422464998,1778969454000,-150.0,0.00026027,2]
[422465002,1778969454000,-6054.0,0.00026049,2]
[422464969,1778969454000,-465.51149616,0.000255,2]
[422465001,1778969454000,-344.0,0.00026027,2]
[422464987,1778969454000,-500.0,0.00026027,2]
[422464972,1778969454000,-414.15057279,0.00025601,2]
[422464965,1778969454000,-171.679547,0.00025,2]
[422464976,1778969454000,-462.3,0.00025786,2]
[422465015,1778969454000,-150.0,0.00026472,2]
[422464947,1778969454000,-184.204153,0.00025,2]
[422464949,1778969454000,-579.96426354,0.00025,2]
[422464944,1778969454000,-627.669364,0.00025,2]
[422464951,1778969454000,-2249.581837,0.00025,2]
[422464948,1778969454000,-184.204153,0.00025,2]
[422464945,1778969454000,-184.204153,0.00025,2]
[422464946,1778969454000,-184.204153,0.00025,2]
[422464950,1778969454000,-2249.581837,0.00025,2]
[422464943,1778969454000,-627.669364,0.00025,2]
[422464952,1778969454000,-2249.581837,0.00025,2]
[422464953,1778969454000,-2249.581837,0.00025,2]
[422464957,1778969454000,-240.725161,0.00025,2]
[422464971,1778969454000,-1519.03,0.00025571,2]
[422464959,1778969454000,-240.725161,0.00025,2]
[422464958,1778969454000,-157.143938,0.00025,2]
[422464964,1778969454000,-240.725161,0.00025,2]
[422464956,1778969454000,-157.143938,0.00025,2]
[422464954,1778969454000,-157.143938,0.00025,2]
[422464963,1778969454000,-171.679547,0.00025,2]
[422464962,1778969454000,-240.725161,0.00025,2]
[422464960,1778969454000,-746.0,0.00025,2]
[422464961,1778969454000,-171.679547,0.00025,2]
[422464977,1778969454000,-1675.19,0.00025786,2]
[422464966,1778969454000,-363.0,0.00025234,2]
[422464974,1778969454000,-799.0,0.00025695,2]
[422464967,1778969454000,-465.51149616,0.000253,2]
[422464975,1778969454000,-3377.74,0.00025786,2]
[422464955,1778969454000,-157.143938,0.00025,2]
[422465004,1778969454000,-378.26953422,0.00026108,2]
[422465063,1778969454000,-374.778137,0.00027397,2]
[422465003,1778969454000,-417.0,0.00026049,2]
[422465036,1778969454000,-2000.0,0.000272,7]
[422465038,1778969454000,-2000.0,0.000272,7]
[422465042,1778969454000,-2000.0,0.000272,7]
[422465045,1778969454000,-2000.0,0.000272,7]
[422465044,1778969454000,-2000.0,0.000272,7]
[422465046,1778969454000,-8711.10912308,0.000273,2]
[422465043,1778969454000,-2000.0,0.000272,7]
[422465054,1778969454000,-239.9102584,0.00027397,2]
[422465052,1778969454000,-500.0,0.00027397,2]
[422465053,1778969454000,-500.0,0.00027397,2]
[422465050,1778969454000,-1519.01101936,0.00027397,2]
[422465047,1778969454000,-178.845595,0.00027339,2]
[422465051,1778969454000,-526.32527003,0.00027397,30]
[422465039,1778969454000,-2000.0,0.000272,7]
[422465048,1778969454000,-4169.01663758,0.0002739,2]
[422465055,1778969454000,-150.0,0.00027397,2]
[422465056,1778969454000,-1500.0,0.00027397,2]
[422465057,1778969454000,-9493.50720769,0.00027397,21]
[422465058,1778969454000,-1465.21,0.00027397,2]
[422465066,1778969454000,-374.778137,0.00027397,2]
[422465059,1778969454000,-300.0,0.00027397,2]
[422465067,1778969454000,-374.778137,0.00027397,2]
[422465061,1778969454000,-151.0,0.00027397,2]
[422465060,1778969454000,-151.0,0.00027397,2]
[422465062,1778969454000,-151.0,0.00027397,2]
[422465065,1778969454000,-374.778137,0.00027397,2]
[422465064,1778969454000,-374.778137,0.00027397,2]
[422465068,1778969454000,-374.778137,0.00027397,2]
[422465049,1778969454000,-8236.03827336,0.0002739,2]
[422465035,1778969454000,-1434.15,0.000272,7]
[422465014,1778969454000,-150.0,0.00026472,2]
[422465033,1778969454000,-150.0,0.00027123,20]
[422465034,1778969454000,-1000.0,0.00027164,2]
[422465013,1778969454000,-150.0,0.00026472,2]
[422465007,1778969454000,-150.0,0.00026472,2]
[422465005,1778969454000,-9956.0,0.00026282,2]
[422465008,1778969454000,-150.0,0.00026472,2]
[422465012,1778969454000,-150.0,0.00026472,2]
[422465011,1778969454000,-150.0,0.00026472,2]
[422465006,1778969454000,-914.9,0.00026296,2]
[422465010,1778969454000,-150.0,0.00026472,2]
[422465016,1778969454000,-150.0,0.00026472,2]
[422465018,1778969454000,-3543.0,0.00026472,2]
[422465019,1778969454000,-926.0,0.00026472,2]
[422465020,1778969454000,-150.0,0.00026472,2]
[422465017,1778969454000,-625.0,0.00026472,2]
[422465009,1778969454000,-150.0,0.00026472,2]
[422465021,1778969454000,-1223.0,0.00026472,2]
[422465028,1778969454000,-1048.93806121,0.00027,2]
[422465037,1778969454000,-2000.0,0.000272,7]
[422465041,1778969454000,-2000.0,0.000272,7]
[422465031,1778969454000,-163.65,0.00027029,2]
[422465029,1778969454000,-530.0,0.00027,2]
[422465030,1778969454000,-2572.707196,0.0002701,2]
[422465040,1778969454000,-2000.0,0.000272,7]
[422465032,1778969454000,-2917.0,0.000271,7]
[422465024,1778969454000,-219.92,0.00026749,2]
[422465026,1778969454000,-2000.0,0.00027,2]
[422465025,1778969454000,-1566.0,0.00026972,5]
[422465022,1778969454000,-799.0,0.00026517,2]
[422465027,1778969454000,-250.0,0.00027,2]
[422465023,1778969454000,-526.33013657,0.00026712,2]
[422465107,1778969455000,-679.41,0.00027397,2]
[422465108,1778969455000,-14532.56,0.00027397,10]
[422465117,1778969455000,-1083.76873823,0.00027466,2]
[422465118,1778969455000,-500.0,0.000278,7]
[422465114,1778969455000,-1078.25,0.000274,7]
[422465102,1778969455000,-2123.786567,0.00027397,2]
[422465116,1778969455000,-1486.69,0.00027423,7]
[422465112,1778969455000,-166.77041051,0.00027397,30]
[422465113,1778969455000,-404.07,0.000274,7]
[422465104,1778969455000,-2123.786567,0.00027397,2]
[422465105,1778969455000,-2123.786567,0.00027397,2]
[422465110,1778969455000,-10092.06,0.00027397,10]
[422465115,1778969455000,-8321.47,0.000274,14]
[422465109,1778969455000,-12110.47,0.00027397,10]
[422465129,1778969455000,-186.4,0.00028,2]
[422465130,1778969455000,-163.65,0.00028144,2]
[422465132,1778969455000,-437.4,0.00028344,2]
[422465120,1778969455000,-300.0,0.000278,7]
[422465119,1778969455000,-300.0,0.000278,7]
[422465128,1778969455000,-600.0,0.00028,2]
[422465121,1778969455000,-300.0,0.000278,7]
[422465122,1778969455000,-300.0,0.000278,7]
[422465126,1778969455000,-300.0,0.000278,7]
[422465124,1778969455000,-300.0,0.000278,7]
[422465123,1778969455000,-300.0,0.000278,7]
[422465125,1778969455000,-300.0,0.000278,7]
[422465131,1778969455000,-914.9,0.00028267,2]
[422465127,1778969455000,-258.0,0.000278,7]
[422465106,1778969455000,-2123.786567,0.00027397,2]
[422465111,1778969455000,-150.0,0.00027397,2]
[422465103,1778969455000,-2123.786567,0.00027397,2]
[422465082,1778969455000,-463.691199,0.00027397,2]
[422465100,1778969455000,-2123.786567,0.00027397,2]
[422465070,1778969455000,-374.778137,0.00027397,2]
[422465133,1778969455000,-450.0,0.00028344,2]
[422465074,1778969455000,-374.778137,0.00027397,2]
[422465073,1778969455000,-374.778137,0.00027397,2]
[422465076,1778969455000,-463.691199,0.00027397,2]
[422465072,1778969455000,-374.778137,0.00027397,2]
[422465079,1778969455000,-463.691199,0.00027397,2]
[422465077,1778969455000,-463.691199,0.00027397,2]
[422465071,1778969455000,-374.778137,0.00027397,2]
[422465075,1778969455000,-151.0,0.00027397,2]
[422465078,1778969455000,-463.691199,0.00027397,2]
[422465093,1778969455000,-151.0,0.00027397,2]
[422465081,1778969455000,-463.691199,0.00027397,2]
[422465091,1778969455000,-151.0,0.00027397,2]
[422465094,1778969455000,-152.244038,0.00027397,2]
[422465080,1778969455000,-463.691199,0.00027397,2]
[422465084,1778969455000,-463.691199,0.00027397,2]
[422465089,1778969455000,-151.0,0.00027397,2]
[422465086,1778969455000,-463.691199,0.00027397,2]
[422465083,1778969455000,-463.691199,0.00027397,2]
[422465085,1778969455000,-463.691199,0.00027397,2]
[422465088,1778969455000,-151.0,0.00027397,2]
[422465087,1778969455000,-463.691199,0.00027397,2]
[422465090,1778969455000,-151.0,0.00027397,2]
[422465099,1778969455000,-2123.786567,0.00027397,2]
[422465095,1778969455000,-2123.786567,0.00027397,2]
[422465096,1778969455000,-2123.786567,0.00027397,2]
[422465097,1778969455000,-2123.786567,0.00027397,2]
[422465101,1778969455000,-2123.786567,0.00027397,2]
[422465098,1778969455000,-2123.786567,0.00027397,2]
[422465092,1778969455000,-151.0,0.00027397,2]
[422465069,1778969455000,-374.778137,0.00027397,2]
[422465135,1778969455000,-9493.5072077,0.00028598,21]
[422465145,1778969455000,-1382.53,0.00028661,7]
[422465168,1778969455000,-379.94,0.00028756,7]
[422465169,1778969455000,-511.74,0.00028756,7]
[422465170,1778969455000,-1381.54,0.00028756,7]
[422465175,1778969455000,-1382.53,0.00028788,30]
[422465174,1778969455000,-510.73,0.00028788,30]
[422465180,1778969455000,-1078.25,0.000288,7]
[422465185,1778969455000,-2945.41,0.0002882,2]
[422465184,1778969455000,-1382.53,0.0002882,2]
[422465186,1778969455000,-379.94,0.0002882,2]
[422465179,1778969455000,-1381.54,0.00028788,30]
[422465182,1778969455000,-2942.68,0.0002882,2]
[422465176,1778969455000,-2945.41,0.00028788,30]
[422465177,1778969455000,-379.94,0.00028788,30]
[422465178,1778969455000,-511.74,0.00028788,30]
[422465163,1778969455000,-1381.54,0.00028725,2]
[422465181,1778969455000,-8321.47,0.000288,14]
[422465188,1778969455000,-1381.54,0.0002882,2]
[422465198,1778969455000,-510.73,0.00028883,30]
[422465190,1778969455000,-510.73,0.00028852,7]
[422465200,1778969455000,-2945.41,0.00028883,30]
[422465193,1778969455000,-379.94,0.00028852,7]
[422465191,1778969455000,-1382.53,0.00028852,7]
[422465199,1778969455000,-1382.53,0.00028883,30]
[422465187,1778969455000,-511.74,0.0002882,2]
[422465189,1778969455000,-2942.68,0.00028852,7]
[422465194,1778969455000,-511.74,0.00028852,7]
[422465196,1778969455000,-8466.0,0.00028877,2]
[422465195,1778969455000,-1381.54,0.00028852,7]
[422465192,1778969455000,-2945.41,0.00028852,7]
[422465134,1778969455000,-180.79,0.00028389,2]
[422465183,1778969455000,-510.73,0.0002882,2]
[422465172,1778969455000,-151.0,0.00028767,7]
[422465197,1778969455000,-2942.68,0.00028883,30]
[422465164,1778969455000,-2942.68,0.00028756,7]
[422465161,1778969455000,-379.94,0.00028725,2]
[422465140,1778969455000,-379.94,0.0002863,2]
[422465143,1778969455000,-2942.68,0.00028661,7]
[422465142,1778969455000,-1381.54,0.0002863,2]
[422465146,1778969455000,-2945.41,0.00028661,7]
[422465141,1778969455000,-511.74,0.0002863,2]
[422465144,1778969455000,-510.73,0.00028661,7]
[422465137,1778969455000,-510.73,0.0002863,2]
[422465139,1778969455000,-2945.41,0.0002863,2]
[422465136,1778969455000,-2942.68,0.0002863,2]
[422465157,1778969455000,-2942.68,0.00028725,2]
[422465156,1778969455000,-1381.54,0.00028693,30]
[422465150,1778969455000,-2942.68,0.00028693,30]
[422465147,1778969455000,-379.94,0.00028661,7]
[422465152,1778969455000,-1382.53,0.00028693,30]
[422465138,1778969455000,-1382.53,0.0002863,2]
[422465153,1778969455000,-2945.41,0.00028693,30]
[422465158,1778969455000,-510.73,0.00028725,2]
[422465160,1778969455000,-2945.41,0.00028725,2]
[422465166,1778969455000,-1382.53,0.00028756,7]
[422465171,1778969455000,-526.32527003,0.00028767,30]
[422465165,1778969455000,-510.73,0.00028756,7]
[422465173,1778969455000,-2942.68,0.00028788,30]
[422465167,1778969455000,-2945.41,0.00028756,7]
[422465159,1778969455000,-1382.53,0.00028725,2]
[422465154,1778969455000,-379.94,0.00028693,30]
[422465151,1778969455000,-510.73,0.00028693,30]
[422465149,1778969455000,-1381.54,0.00028661,7]
[422465148,1778969455000,-511.74,0.00028661,7]
[422465155,1778969455000,-511.74,0.00028693,30]
[422465162,1778969455000,-511.74,0.00028725,2]
[422465238,1778969456000,-2945.41,0.00029042,7]
[422465246,1778969456000,-600.0,0.00029074,30]
[422465243,1778969456000,-417.0,0.00029049,2]
[422465244,1778969456000,-600.0,0.00029074,30]
[422465242,1778969456000,-6054.0,0.00029049,2]
[422465236,1778969456000,-510.73,0.00029042,7]
[422465241,1778969456000,-1381.54,0.00029042,7]
[422465239,1778969456000,-379.94,0.00029042,7]
[422465237,1778969456000,-1382.53,0.00029042,7]
[422465233,1778969456000,-511.74,0.0002901,2]
[422465224,1778969456000,-379.94,0.00028979,30]
[422465240,1778969456000,-511.74,0.00029042,7]
[422465248,1778969456000,-600.0,0.00029074,30]
[422465256,1778969456000,-1381.54,0.00029074,30]
[422465245,1778969456000,-600.0,0.00029074,30]
[422465249,1778969456000,-541.0,0.00029074,30]
[422465251,1778969456000,-510.73,0.00029074,30]
[422465261,1778969456000,-379.94,0.00029105,2]
[422465258,1778969456000,-510.73,0.00029105,2]
[422465255,1778969456000,-511.74,0.00029074,30]
[422465250,1778969456000,-2942.68,0.00029074,30]
[422465252,1778969456000,-1382.53,0.00029074,30]
[422465262,1778969456000,-511.74,0.00029105,2]
[422465253,1778969456000,-2945.41,0.00029074,30]
[422465254,1778969456000,-379.94,0.00029074,30]
[422465259,1778969456000,-1382.53,0.00029105,2]
[422465260,1778969456000,-2945.41,0.00029105,2]
[422465232,1778969456000,-379.94,0.0002901,2]
[422465247,1778969456000,-600.0,0.00029074,30]
[422465230,1778969456000,-1382.53,0.0002901,2]
[422465215,1778969456000,-1382.53,0.00028947,7]
[422465231,1778969456000,-2945.41,0.0002901,2]
[422465204,1778969456000,-1000.0,0.00028896,21]
[422465207,1778969456000,-510.73,0.00028915,2]
[422465210,1778969456000,-379.94,0.00028915,2]
[422465212,1778969456000,-1381.54,0.00028915,2]
[422465214,1778969456000,-510.73,0.00028947,7]
[422465213,1778969456000,-2942.68,0.00028947,7]
[422465205,1778969456000,-404.07,0.000289,7]
[422465201,1778969456000,-379.94,0.00028883,30]
[422465203,1778969456000,-1381.54,0.00028883,30]
[422465208,1778969456000,-1382.53,0.00028915,2]
[422465206,1778969456000,-2942.68,0.00028915,2]
[422465202,1778969456000,-511.74,0.00028883,30]
[422465209,1778969456000,-2945.41,0.00028915,2]
[422465211,1778969456000,-511.74,0.00028915,2]
[422465216,1778969456000,-2945.41,0.00028947,7]
[422465217,1778969456000,-379.94,0.00028947,7]
[422465223,1778969456000,-2945.41,0.00028979,30]
[422465218,1778969456000,-511.74,0.00028947,7]
[422465222,1778969456000,-1382.53,0.00028979,30]
[422465219,1778969456000,-1381.54,0.00028947,7]
[422465221,1778969456000,-510.73,0.00028979,30]
[422465220,1778969456000,-2942.68,0.00028979,30]
[422465234,1778969456000,-1381.54,0.0002901,2]
[422465227,1778969456000,-160.0,0.00029,30]
[422465228,1778969456000,-2942.68,0.0002901,2]
[422465235,1778969456000,-2942.68,0.00029042,7]
[422465229,1778969456000,-510.73,0.0002901,2]
[422465226,1778969456000,-1381.54,0.00028979,30]
[422465225,1778969456000,-511.74,0.00028979,30]
[422465257,1778969456000,-2942.68,0.00029105,2]
[422465263,1778969456000,-1381.54,0.00029105,2]
[422465297,1778969456000,-199.293253,0.00029232,7]
[422465269,1778969456000,-511.74,0.00029137,7]
[422465300,1778969456000,-151.428047,0.00029232,7]
[422465298,1778969456000,-151.428047,0.00029232,7]
[422465302,1778969456000,-151.428047,0.00029232,7]
[422465301,1778969456000,-151.0,0.00029232,7]
[422465305,1778969456000,-151.0,0.00029232,7]
[422465315,1778969456000,-190.36881714,0.00029248,7]
[422465309,1778969456000,-510.75,0.00029232,7]
[422465306,1778969456000,-232.716665,0.00029232,7]
[422465304,1778969456000,-151.0,0.00029232,7]
[422465311,1778969456000,-2945.42,0.00029232,7]
[422465310,1778969456000,-1382.54,0.00029232,7]
[422465307,1778969456000,-2942.8,0.00029232,7]
[422465316,1778969456000,-163.65,0.00029259,2]
[422465295,1778969456000,-199.293253,0.00029232,7]
[422465308,1778969456000,-380.42,0.00029232,7]
[422465314,1778969456000,-1381.58,0.00029232,7]
[422465317,1778969456000,-170.16438583,0.00029262,7]
[422465319,1778969456000,-150.0,0.00029472,2]
[422465322,1778969456000,-150.0,0.00029472,2]
[422465327,1778969456000,-926.0,0.00029472,2]
[422465323,1778969456000,-150.0,0.00029472,2]
[422465320,1778969456000,-150.0,0.00029472,2]
[422465318,1778969456000,-1486.69,0.00029278,7]
[422465325,1778969456000,-625.0,0.00029472,2]
[422465321,1778969456000,-150.0,0.00029472,2]
[422465326,1778969456000,-3543.0,0.00029472,2]
[422465324,1778969456000,-150.0,0.00029472,2]
[422465265,1778969456000,-510.73,0.00029137,7]
[422465313,1778969456000,-511.8,0.00029232,7]
[422465292,1778969456000,-154.57234443,0.00029221,7]
[422465312,1778969456000,-380.12,0.00029232,7]
[422465296,1778969456000,-199.293253,0.00029232,7]
[422465299,1778969456000,-151.428047,0.00029232,7]
[422465271,1778969456000,-2942.68,0.00029169,30]
[422465274,1778969456000,-2945.41,0.00029169,30]
[422465276,1778969456000,-511.74,0.00029169,30]
[422465275,1778969456000,-379.94,0.00029169,30]
[422465272,1778969456000,-510.73,0.00029169,30]
[422465270,1778969456000,-1381.54,0.00029137,7]
[422465266,1778969456000,-1382.53,0.00029137,7]
[422465267,1778969456000,-2945.41,0.00029137,7]
[422465273,1778969456000,-1382.53,0.00029169,30]
[422465264,1778969456000,-2942.68,0.00029137,7]
[422465278,1778969456000,-3000.0,0.00029169,30]
[422465280,1778969456000,-3000.0,0.00029169,30]
[422465289,1778969456000,-511.74,0.00029201,2]
[422465268,1778969456000,-379.94,0.00029137,7]
[422465282,1778969456000,-1610.0,0.00029169,30]
[422465294,1778969456000,-199.293253,0.00029232,7]
[422465293,1778969456000,-174.88300058,0.00029221,7]
[422465291,1778969456000,-153.1829813,0.00029221,2]
[422465286,1778969456000,-1382.53,0.00029201,2]
[422465283,1778969456000,-902.0,0.00029169,30]
[422465285,1778969456000,-510.73,0.00029201,2]
[422465279,1778969456000,-3000.0,0.00029169,30]
[422465284,1778969456000,-2942.68,0.00029201,2]
[422465281,1778969456000,-3000.0,0.00029169,30]
[422465288,1778969456000,-379.94,0.00029201,2]
[422465277,1778969456000,-1381.54,0.00029169,30]
[422465287,1778969456000,-2945.41,0.00029201,2]
[422465290,1778969456000,-1381.54,0.00029201,2]
[422465303,1778969456000,-151.0,0.00029232,7]
[422465353,1778969457000,-433.0,0.00030137,2]
[422465346,1778969457000,-200.0,0.00030137,2]
[422465356,1778969457000,-250.0,0.00030137,2]
[422465354,1778969457000,-200.0,0.00030137,2]
[422465348,1778969457000,-250.0,0.00030137,2]
[422465341,1778969457000,-777.12310407,0.000301,2]
[422465350,1778969457000,-237.0,0.00030137,2]
[422465358,1778969457000,-150.0,0.00030137,2]
[422465355,1778969457000,-290.0,0.00030137,2]
[422465351,1778969457000,-550.0,0.00030137,2]
[422465357,1778969457000,-354.0,0.00030137,2]
[422465367,1778969457000,-155.0,0.00030178,30]
[422465359,1778969457000,-222.0,0.00030137,2]
[422465343,1778969457000,-777.12310407,0.000301,2]
[422465349,1778969457000,-250.0,0.00030137,2]
[422465345,1778969457000,-679.41,0.00030137,2]
[422465330,1778969457000,-150.0,0.00029534,2]
[422465344,1778969457000,-471270.96424187,0.0003013,7]
[422465368,1778969457000,-334.0,0.00030178,30]
[422465328,1778969457000,-150.0,0.00029472,2]
[422465329,1778969457000,-1223.0,0.00029472,2]
[422465340,1778969457000,-2917.0,0.000301,7]
[422465332,1778969457000,-500.0,0.00029699,2]
[422465335,1778969457000,-1434.15,0.000299,7]
[422465331,1778969457000,-352.02,0.00029544,30]
[422465337,1778969457000,-650.0,0.0003,2]
[422465333,1778969457000,-1078.25,0.000297,7]
[422465334,1778969457000,-8321.47,0.000297,14]